Workbook

Sheet CasaPLUS
C2: COTIZACIÓN SEGURO DOMICILIARIO CASAPLUSV8
U3: Dólares (US$) | V3: US$ | W3: BASICAS | AA3: Concreto Armado | AB3: Departamento | AC3: SI | AD3: No Aplica
C4: CONTRATANTE | U4: Sol ( S/ ) | V4: S/ | W4: COMPLETAS | AA4: Ladrillo y Cemento | AB4: Casa | AC4: NO
C5: ASEGURADO | AA5: Estructura de Acero
C6: CORREDOR | J6: Oficina | M6: Ejecutivo Comercial | U6: Tipo de Cambio | V6: 4.15 | AA6: Madera y/o Adobe y/o quincha
C7: ENDOSATARIO | D7: SI | E7: Nombre del Endosatario
C8: MONEDA | D8: Dólares (US$) | E8: Fecha Cotización | I8: =TODAY() -> 2021-09-30 | J8: Validez de la cotización | L8: 15 días | M8: Vigencia del seguro | P8: 1 Año | U8: monto minimo Cob robo | V8: 1999
C10: DATOS SBS | U10: limite SA | V10: 1500000 | Z10: para ocultar celdas con macros | AA10: https://www.youtube.com/watch?v=kiSTbvB8EJc
C11: Ubicación del riesgo | I11: Tipo de Vivienda | J11: Tipo Estructura | K11: Nro. Pisos | L11: Nro. Sótanos | M11: Año Construc. | N11: Valor Declarado
N12: Edificio | O12: Contenido | P12: Total | U12: valor verdadero | V12: Excede limite permitido
N13: 100000 | P13: =SUM(N13:O13) -> 100000 | U13: valor verdadero | V13: Debe asegurar edificio
C15: Seleccionar Coberturas | D15: BASICAS
U16: valor verdadero | V16: Debe asegurar contenido
C17: Plan | D17: =CONCATENATE("Prima Comercial Anual ",IF(D8=U3,V3,V4)) -> Prima Comercial Anual US$ | E17: =CONCATENATE("Prima Comercial + IGV Anual ",IF($D$8=$U$3,$V$3,$V$4)) -> Prima Comercial + IGV Anual US$ | I17: Descuento | J17: =E17 -> Prima Comercial + IGV Anual US$ | K17: =IF(OR(K18=V13,K19=V12,K20=V16),"Observaciones"," ") -> 
C18: Plan Estandar | D18: =VLOOKUP(D133,D134:G137,2,FALSE) -> 170 | E18: =IFERROR(D18*1.18,"No Aplica") -> 200.6 | I18: 0 | J18: =IFERROR(IF(I18="No Aplica","No aplica",IF(AND($D$8=$U$3,(E18*(1-I18)<I119)),I119,IF(AND($D$8=$U$4,E18*(1-I18)<M119),M119,E18*(1-I18)))),"No Aplica") -> 200.6 | K18: =IF(O13>N13,V13," ") -> 
C19: Plan Premium | D19: =VLOOKUP(D133,D138:G141,2,FALSE) -> No Aplica | E19: =IFERROR(D19*1.18,"No Aplica") -> No Aplica | I19: =I18 -> 0 | J19: =IFERROR(IF(I19="No Aplica","No aplica",IF(AND($D$8=$U$3,(E19*(1-I19)<J119)),J119,IF(AND($D$8=$U$4,E19*(1-I19)<N119),N119,E19*(1-I19)))),"No Aplica") -> No Aplica | K19: =IF(AND(D8=U3,P13>V10),V12,IF(AND(D8=U4,P13>V10*V6),V12," ")) -> 
C20: Plan Gold | D20: =VLOOKUP(D133,D142:G145,2,FALSE) -> No Aplica | E20: =IFERROR(D20*1.18,"No Aplica") -> No Aplica | I20: =I18 -> 0 | J20: =IFERROR(IF(I20="No Aplica","No aplica",IF(AND($D$8=$U$3,(E20*(1-I20)<K119)),K119,IF(AND($D$8=$U$4,E20*(1-I20)<O119),O119,E20*(1-I20)))),"No Aplica") -> No Aplica | K20: =IF(AND(D15=W4,D18="No Aplica"),V16," ") -> 
O21: =+IF(D15=W3,1,0) -> 1
C23: Plan | D23: =CONCATENATE("Prima Comercial Anual ",IF(D8=U3,V3,V4)) -> Prima Comercial Anual US$ | E23: =CONCATENATE("Prima Comercial + IGV Anual ",IF(D8=U3,V3,V4)) -> Prima Comercial + IGV Anual US$ | I23: Descuento | J23: =E23 -> Prima Comercial + IGV Anual US$
C24: Plan Estandar | D24: =IF($D$8=$U$3,I129,M129) -> No Aplica | E24: =IFERROR(D24*1.18,"No Aplica") -> No Aplica | I24: 0.1 | J24: =IFERROR(IF(I24="No Aplica","No aplica",IF(AND($D$8=U3,(E24*(1-I24)<I119)),I119,IF(AND($D$8=U4,E24*(1-I24)<M119),M119,E24*(1-I24)))),"No Aplica") -> No Aplica
C25: Plan Premium | D25: =IF($D$8=$U$3,J129,N129) -> No Aplica | E25: =IFERROR(D25*1.18,"No Aplica") -> No Aplica | I25: =I24 -> 0.1 | J25: =IFERROR(IF(I25="No Aplica","No aplica",IF(AND($D$8=U3,(E25*(1-I25)<J119)),J119,IF(AND($D$8=U4,E25*(1-I25)<N119),N119,E25*(1-I25)))),"No Aplica") -> No Aplica
C26: Plan Gold | D26: =IF($D$8=$U$3,K129,O129) -> No Aplica | E26: =IFERROR(D26*1.18,"No Aplica") -> No Aplica | I26: =I24 -> 0.1 | J26: =IFERROR(IF(I26="No Aplica","No aplica",IF(AND($D$8=U4,(E26*(1-I26)<K119)),K119,IF(AND($D$8=U5,E26*(1-I26)<O119),O119,E26*(1-I26)))),"No Aplica") -> No Aplica
C29: Coberturas Principales | F29: SA Maxima Plan Estandar | G29: SA Maxima Plan Premium | H29: SA Maxima Plan Gold | I29: Suma Asegurada | K29: =IF(D8=U3,V3,V4) -> US$ | L29: Deducibles a cargo del asegurado | T29: Plan Estandar | V29: Plan Premium | X29: Plan Gold
I30: P. Estandar | J30: P. Premium | K30: P. Gold | T30: SA Dolares | U30: SA Soles | V30: SA Dolares | W30: SA Soles | X30: SA Dolares | Y30: SA Soles
C31: I. PROGRAMA BASICO
C32: Este seguro cubre la destrucción o daño físico directo de la vivienda y su contenido como consecuencia directa de: | I32: =+P13 -> 100000
C33: Incendio y/o rayo, explosión, daños por agua, lluvia e inundación, caída de aeronaves, impacto de vehículos terrestres, daños por humo. | F33: Hasta el 100% de la Suma Asegurada (SA) de la Vivienda + Contenido | I33: =P13 -> 100000 | J33: =P13 -> 100000 | K33: =P13 -> 100000 | L33: =Hoja1!B4 -> 10% del monto indemnizable mínimo US$ 200
C34: Terremoto, temblor, erupción volcánica, maremoto (Tsunami), salida de mar, marejada, oleaje. | I34: =P13 -> 100000 | J34: =P13 -> 100000 | K34: =P13 -> 100000 | L34: =Hoja1!B5 -> 1% de la Suma Asegurada de la Vivienda + Contenido, minimo US$ 500, lo que resulte mayor.
C35: Huelga y conmoción civil, daño malicioso, vandalismo y/o terrorismo, limite agregado vigencia hasta. | I35: =P13 -> 100000 | J35: =P13 -> 100000 | K35: =P13 -> 100000 | L35: =Hoja1!B6 -> 5% del monto indemnizable mínimo US$ 200
C39: Coberturas Adicionales
C40: Gastos Extras, hasta el 20% de la Suma Asegurada de la Vivienda + Contenido, máximo: | F40: 30000 | G40: 40000 | H40: 50000 | I40: =IF($D$8=U3,T40,U40) -> 20000 | J40: =IF($D$8=U3,V40,W40) -> 20000 | K40: =IF($D$8=U3,X40,Y40) -> 20000 | L40: El de la cobertura afectada | T40: =IF($P$13*0.2<F40,$P$13*0.2,F40) -> 20000 | U40: =IF($P$13*0.2<F40*$V$6,$P$13*0.2,F40*$V$6) -> 20000 | V40: =IF($P$13*0.2<G40,$P$13*0.2,G40) -> 20000 | W40: =IF($P$13*0.2<G40*$V$6,$P$13*0.2,G40*$V$6) -> 20000 | X40: =IF($P$13*0.2<H40,$P$13*0.2,H40) -> 20000 | Y40: =IF($P$13*0.2<H40*$V$6,$P$13*0.2,H40*$V$6) -> 20000
C41: Gastos de remoción de escombros, hasta el 20% de la Suma Asegurada de la Vivienda + Contenido, máximo: | F41: 30000 | G41: 40000 | H41: 50000 | I41: =IF($D$8=U3,T41,U41) -> 20000 | J41: =IF($D$8=U3,V41,W41) -> 20000 | K41: =IF($D$8=U3,X41,Y41) -> 20000 | L41: Sin Deducible | T41: =IF($P$13*0.2<F41,$P$13*0.2,F41) -> 20000 | U41: =IF($P$13*0.2<F41*$V$6,$P$13*0.2,F41*$V$6) -> 20000 | V41: =IF($P$13*0.2<G41,$P$13*0.2,G41) -> 20000 | W41: =IF($P$13*0.2<G41*$V$6,$P$13*0.2,G41*$V$6) -> 20000 | X41: =IF($P$13*0.2<H41,$P$13*0.2,H41) -> 20000 | Y41: =IF($P$13*0.2<H41*$V$6,$P$13*0.2,H41*$V$6) -> 20000
C42: Gastos de extinción y contención del siniestro, hasta el 20% de la Suma Asegurada de la Vivienda + Contenido, máximo: | F42: 30000 | G42: 40000 | H42: 50000 | I42: =IF($D$8=U3,T42,U42) -> 20000 | J42: =IF($D$8=U3,V42,W42) -> 20000 | K42: =IF($D$8=U3,X42,Y42) -> 20000 | L42: Sin deducible | T42: =IF($P$13*0.2<F42,$P$13*0.2,F42) -> 20000 | U42: =IF($P$13*0.2<F42*$V$6,$P$13*0.2,F42*$V$6) -> 20000 | V42: =IF($P$13*0.2<G42,$P$13*0.2,G42) -> 20000 | W42: =IF($P$13*0.2<G42*$V$6,$P$13*0.2,G42*$V$6) -> 20000 | X42: =IF($P$13*0.2<H42,$P$13*0.2,H42) -> 20000 | Y42: =IF($P$13*0.2<H42*$V$6,$P$13*0.2,H42*$V$6) -> 20000
C43: Rotura de vidrios, espejos y unidades sanitarias, hasta el 20% de la Suma Asegurada de la Vivienda, máximo: | F43: 10000 | G43: 20000 | H43: 30000 | I43: =IF($D$8=U3,T43,U43) -> 10000 | J43: =IF($D$8=U3,V43,W43) -> 20000 | K43: =IF($D$8=U3,X43,Y43) -> 20000 | L43: =CONCATENATE(Hoja1!C7," ",Hoja1!D7," ",Hoja1!E7, ,Hoja1!F7) -> 10% del monto indemnizable, mínimo US$ 30 | T43: =IF($N$13*0.2<F43,$N$13*0.2,F43) -> 10000 | U43: =IF($N$13*0.2<F43*$V$6,$N$13*0.2,F43*$V$6) -> 20000 | V43: =IF($N$13*0.2<G43,$N$13*0.2,G43) -> 20000 | W43: =IF($N$13*0.2<G43*$V$6,$N$13*0.2,G43*$V$6) -> 20000 | X43: =IF($N$13*0.2<H43,$N$13*0.2,H43) -> 20000 | Y43: =IF($N$13*0.2<H43*$V$6,$N$13*0.2,H43*$V$6) -> 20000
C44: Robo de instalaciones fijas, hasta el 20% de la Suma Asegurada de la Vivienda, máximo: | F44: 10000 | G44: 20000 | H44: 30000 | I44: =IF($D$8=U3,T44,U44) -> 10000 | J44: =IF($D$8=U3,V44,W44) -> 20000 | K44: =IF($D$8=U3,X44,Y44) -> 20000 | L44: =CONCATENATE(Hoja1!C8," ",Hoja1!D8," ",Hoja1!E8, ,Hoja1!F8) -> 15% del monto indemnizable, mínimo US$ 200 | T44: =IF($N$13*0.2<F44,$N$13*0.2,F44) -> 10000 | U44: =IF($N$13*0.2<F44*$V$6,$N$13*0.2,F44*$V$6) -> 20000 | V44: =IF($N$13*0.2<G44,$N$13*0.2,G44) -> 20000 | W44: =IF($N$13*0.2<G44*$V$6,$N$13*0.2,G44*$V$6) -> 20000 | X44: =IF($N$13*0.2<H44,$N$13*0.2,H44) -> 20000 | Y44: =IF($N$13*0.2<H44*$V$6,$N$13*0.2,H44*$V$6) -> 20000
C45: Responsabilidad civil extracontractual Frente a Terceros, por evento y en agregado vigencia hasta: | F45: 50000 | G45: 100000 | H45: 200000 | I45: =IF($D$8=U3,T45,U45) -> 50000 | J45: =IF($D$8=U3,V45,W45) -> 100000 | K45: =IF($D$8=U3,X45,Y45) -> 200000 | L45: =CONCATENATE(Hoja1!C9," ",Hoja1!D9," ",Hoja1!E9, ,Hoja1!F9) -> US$ 200 | T45: =+F45 -> 50000 | U45: =+F45*V6 -> 207500 | V45: =+G45 -> 100000 | W45: =+G45*V6 -> 415000 | X45: =+H45 -> 200000 | Y45: =+H45*V6 -> 830000
C46: Gastos por emergencias médicas a terceros hasta US$ 1,000 por persona, y en agregado vigencia máximo: | F46: 1000 | G46: 2000 | H46: 3000 | I46: =IF($D$8=U3,T46,U46) -> 1000 | J46: =IF($D$8=U3,V46,W46) -> 2000 | K46: =IF($D$8=U3,X46,Y46) -> 3000 | L46: Sin deducible | T46: =+F46 -> 1000 | U46: =+F46*V6 -> 4150 | V46: =+G46 -> 2000 | W46: =+G46*V6 -> 8300 | X46: =+H46 -> 3000 | Y46: =+H46*V6 -> 12450
C47: Responsabilidad civil patronal (frente al trabajador del hogar), por evento y en agregado vigencia hasta: | F47: 10000 | G47: 15000 | H47: 20000 | I47: =IF($D$8=U3,T47,U47) -> 10000 | J47: =IF($D$8=U3,V47,W47) -> 15000 | K47: =IF($D$8=U3,X47,Y47) -> 20000 | L47: Sin deducible | T47: =+F47 -> 10000 | U47: =+F47*V6 -> 41500 | V47: =+G47 -> 15000 | W47: =+G47*V6 -> 62250 | X47: =+H47 -> 20000 | Y47: =+H47*V6 -> 83000
C48: Responsabilidad civil por posesión de mascotas por evento y en agregado vigencia, hasta: | F48: 1000 | G48: 2000 | H48: 3000 | I48: =IF($D$8=U3,T48,U48) -> 1000 | J48: =IF($D$8=U3,V48,W48) -> 2000 | K48: =IF($D$8=U3,X48,Y48) -> 3000 | L48: Sin deducible | T48: =+F48 -> 1000 | U48: =+F48*V6 -> 4150 | V48: =+G48 -> 2000 | W48: =+G48*V6 -> 8300 | X48: =+H48 -> 3000 | Y48: =+H48*V6 -> 12450
C49: II. PROGRAMA FULL
C50: Robo de Bienes Contenidos en la Vivienda hasta: | F50: Hasta el 100% de la Suma Asegurada del Contenido | I50: =IF(OR(D15=W3,$O$13<V8),"No Aplica",$O$13) -> No Aplica | J50: =I50 -> No Aplica | K50: =J50 -> No Aplica | L50: =IF(I50="No Aplica","No Aplica", Hoja1!B10) -> No Aplica | T50: =O13 -> 0 | U50: =T50 -> 0 | V50: =U50 -> 0 | W50: 0 | X50: 0 | Y50: 0
C51: Robo de Contenidos Especiales (joyas, alhajas, perlas, platería, relojes personales, obras de arte, pieles, instrumentos musicales y colecciones en general) dentro o fuera de los predios, con un límite por bien de US$1,000. La Suma Asegurada está limitada al 30% de la suma asegurada del Contenido, hasta: | F51: 3000 | G51: 5000 | H51: 15000 | I51: =IF($D$8=U3,T51,U51) -> No Aplica | J51: =IF($D$8=U3,V51,W51) -> No Aplica | K51: =IF($D$8=U3,X51,Y51) -> No Aplica | L51: =IF(T51="No Aplica","No Aplica", Hoja1!B11) -> No Aplica | T51: =IF(OR(D15=W3,$O$13<V8),"No Aplica",IF($O$13*0.3<F51,$O$13*0.3,F51)) -> No Aplica | U51: =IF(OR(D15=W3,$O$13<V8),"No Aplica",IF($O$13*0.3<F51*$V$6,$O$13*0.3,F51*$V$6)) -> No Aplica | V51: =IF(OR(D15=W3,$O$13<V8),"No Aplica",IF($O$13*0.3<G51,$O$13*0.3,G51)) -> No Aplica | W51: =IF(OR(D15=W3,$O$13<V8),"No Aplica",IF($O$13*0.3<G51*$V$6,$O$13*0.3,G51*$V$6)) -> No Aplica | X51: =IF(OR(D15=W3,$O$13<V8),"No Aplica",IF($O$13*0.3<H51,$O$13*0.3,H51)) -> No Aplica | Y51: =IF(OR(D15=W3,$O$13<V8),"No Aplica",IF($O$13*0.3<H51*$V$6,$O$13*0.3,H51*$V$6)) -> No Aplica
C52: Robo de dinero en Efectivo dentro de la Vivienda, hasta: | F52: 500 | G52: 750 | H52: 1000 | I52: =IF($D$8=U3,T52,U52) -> No Aplica | J52: =IF($D$8=U3,V52,W52) -> No Aplica | K52: =IF($D$8=U3,X52,Y52) -> No Aplica | L52: =IF(T52="No Aplica","No Aplica",Hoja1!B12) -> No Aplica | T52: =IF(OR(D15=W3,$O$13<V8),"No Aplica",F52) -> No Aplica | U52: =IF(OR(D15=W3,$O$13<V8),"No Aplica",F52*$V$6) -> No Aplica | V52: =IF(OR(D15=W3,$O$13<V8),"No Aplica",G52) -> No Aplica | W52: =IF(OR(D15=W3,$O$13<V8),"No Aplica",G52*$V$6) -> No Aplica | X52: =IF(OR(D15=W3,$O$13<V8),"No Aplica",H52) -> No Aplica | Y52: =IF(OR(D15=W3,$O$13<V8),"No Aplica",H52*$V$6) -> No Aplica
C53: Robo de dinero en tránsito solo por asalto, hasta: | F53: 500 | G53: 750 | H53: 1000 | I53: =IF($D$8=U3,T53,U53) -> No Aplica | J53: =IF($D$8=U3,V53,W53) -> No Aplica | K53: =IF($D$8=U3,X53,Y53) -> No Aplica | L53: =IF(T53="No Aplica","No Aplica", Hoja1!B13) -> No Aplica | T53: =IF(OR(D15=W3,O13<V8),"No Aplica",F53) -> No Aplica | U53: =IF(OR(D15=W3,O13<V8),"No Aplica",F53*$V$6) -> No Aplica | V53: =IF(OR(D15=W3,$O$13<V8),"No Aplica",G53) -> No Aplica | W53: =IF(OR(D15=W3,$O$13<V8),"No Aplica",G53*$V$6) -> No Aplica | X53: =IF(OR(D15=W3,$O$13<V8),"No Aplica",H53) -> No Aplica | Y53: =IF(OR(D15=W3,$O$13<V8),"No Aplica",H53*$V$6) -> No Aplica
C54: Daños internos de equipos electrónicos y equipos eléctricos, hasta el 10% de la Suma Asegurada del Contenido, máximo: | F54: 3000 | G54: 4000 | H54: 5000 | I54: =IF($D$8=U3,T54,U54) -> No Aplica | J54: =IF($D$8=U3,V54,W54) -> No Aplica | K54: =IF($D$8=U3,X54,Y54) -> No Aplica | L54: =IF(T54="No Aplica","No Aplica", Hoja1!B14) -> No Aplica | T54: =IF(OR(D15=W3,$O$13<V8),"No Aplica",IF($O$13*0.1<F54,$O$13*0.1,F54)) -> No Aplica | U54: =IF(OR(D15=W3,$O$13<V8),"No Aplica",IF($O$13*0.1<F54*$V$6,$O$13*0.1,F54*$V$6)) -> No Aplica | V54: =IF(OR(D15=W3,$O$13<V8),"No Aplica",IF($O$13*0.1<G54,$O$13*0.1,G54)) -> No Aplica | W54: =IF(OR(D15=W3,$O$13<V8),"No Aplica",IF($O$13*0.1<G54*$V$6,$O$13*0.1,G54*$V$6)) -> No Aplica | X54: =IF(OR(D15=W3,$O$13<V8),"No Aplica",IF($O$13*0.1<H54,$O$13*0.1,H54)) -> No Aplica | Y54: =IF(OR(D15=W3,$O$13<V8),"No Aplica",IF($O$13*0.1<H54*$V$6,$O$13*0.1,H54*$V$6)) -> No Aplica
C55: Asistencia médica urgente por lesiones en un robo con un límite por persona de US$1,000 y en agregado vigencia máximo: | F55: 5000 | G55: 7500 | H55: 10000 | I55: =IF($D$8=U3,T55,U55) -> No Aplica | J55: =IF($D$8=U3,V55,W55) -> No Aplica | K55: =IF($D$8=U3,X55,Y55) -> No Aplica | L55: =IF(T55="No Aplica","No Aplica", Hoja1!B15) -> No Aplica | T55: =IF(OR(D15=W3,$O$13<V8),"No Aplica",F55) -> No Aplica | U55: =IF(OR(D15=W3,$O$13<V8),"No Aplica",F55*$V$6) -> No Aplica | V55: =IF(OR(D15=W3,$O$13<V8),"No Aplica",G55) -> No Aplica | W55: =IF(OR(D15=W3,$O$13<V8),"No Aplica",G55*$V$6) -> No Aplica | X55: =IF(OR(D15=W3,$O$13<V8),"No Aplica",H55) -> No Aplica | Y55: =IF(OR(D15=W3,$O$13<V8),"No Aplica",H55*$V$6) -> No Aplica
C56: Alojamiento temporal por inhabilitación de la vivienda, con un límite mensual de US$ 1,000 y en agregado vigencia máximo: | F56: 3000 | G56: 5000 | H56: 10000 | I56: =IF(I55="No Aplica","No Aplica",IF($D$8=U3,T56,U56)) -> No Aplica | J56: =IF(I55="No Aplica"," No Aplica",IF($D$8=U3,V56,W56)) -> No Aplica | K56: =IF(I55="No Aplica"," No Aplica",IF($D$8=U3,X56,Y56)) -> No Aplica | L56: =IF(T56="No Aplica","No Aplica", Hoja1!B17) -> No Aplica | T56: =IF(OR(D15=W3,$O$13<V8),"No Aplica",F56) -> No Aplica | U56: =IF(OR(D15=W3,$O$13<V8),"No Aplica",F56*$V$6) -> No Aplica | V56: =IF(OR(D15=W3,$O$13<V8),"No Aplica",G56) -> No Aplica | W56: =IF(OR(D15=W3,$O$13<V8),"No Aplica",G56*$V$6) -> No Aplica | X56: =IF(OR(D15=W3,$O$13<V8),"No Aplica",H56) -> No Aplica | Y56: =IF(OR(D15=W3,$O$13<V8),"No Aplica",H56*$V$6) -> No Aplica
C57: Daños durante el traslado del contenido asegurado al alojamiento temporal, hasta el 50% de la Suma Asegurada del Contenido, máximo: | F57: 3000 | G57: 5000 | H57: 10000 | I57: =IF($D$8=U3,T57,U57) -> No Aplica | J57: =IF($D$8=U3,V57,W57) -> No Aplica | K57: =IF($D$8=U3,X57,Y57) -> No Aplica | L57: =IF(T57="No Aplica","No Aplica", Hoja1!B18) -> No Aplica | T57: =IF(OR(D15=W3,$O$13<V8),"No Aplica",IF($O$13*0.5<F57,$O$13*0.5,F57)) -> No Aplica | U57: =IF(OR(D15=W3,$O$13<V8),"No Aplica",IF($O$13*0.5<F57*$V$6,$O$13*0.5,F57*$V$6)) -> No Aplica | V57: =IF(OR(D15=W3,$O$13<V8),"No Aplica",IF($O$13*0.5<G57,$O$13*0.5,G57)) -> No Aplica | W57: =IF(OR(D15=W3,$O$13<V8),"No Aplica",IF($O$13*0.5<G57*$V$6,$O$13*0.5,G57*$V$6)) -> No Aplica | X57: =IF(OR(D15=W3,$O$13<V8),"No Aplica",IF($O$13*0.5<H57,$O$13*0.5,H57)) -> No Aplica | Y57: =IF(OR(D15=W3,$O$13<V8),"No Aplica",IF($O$13*0.5<H57*$V$6,$O$13*0.5,H57*$V$6)) -> No Aplica
C58: Perdida de alimentos en equipos de refrigeración, hasta el 5% de la Suma Asegurada del Contenido, máximo: | F58: 750 | G58: 1000 | H58: 1500 | I58: =IF($D$8=U3,T58,U58) -> No Aplica | J58: =IF($D$8=U3,V58,W58) -> No Aplica | K58: =IF($D$8=U3,X58,Y58) -> No Aplica | L58: =IF(T58="No Aplica","No Aplica", Hoja1!B19) -> No Aplica | T58: =IF(OR(D15=W3,$O$13<V8),"No Aplica",IF($O$13*0.05<F58,$O$13*0.05,F58)) -> No Aplica | U58: =IF(OR(D15=W3,$O$13<V8),"No Aplica",IF($O$13*0.05<F58*$V$6,$O$13*0.05,F58*$V$6)) -> No Aplica | V58: =IF(OR(D15=W3,$O$13<V8),"No Aplica",IF($O$13*0.05<G58,$O$13*0.05,G58)) -> No Aplica | W58: =IF(OR(D15=W3,$O$13<V8),"No Aplica",IF($O$13*0.05<G58*$V$6,$O$13*0.05,G58*$V$6)) -> No Aplica | X58: =IF(OR(D15=W3,$O$13<V8),"No Aplica",IF($O$13*0.05<H58,$O$13*0.05,H58)) -> No Aplica | Y58: =IF(OR(D15=W3,$O$13<V8),"No Aplica",IF($O$13*0.05<H58*$V$6,$O$13*0.05,H58*$V$6)) -> No Aplica
C59: Pérdida de equipaje por viaje dentro o fuera del país, hasta el 10% de la Suma Asegurada del Contenido, máximo: | F59: 750 | G59: 1000 | H59: 1500 | I59: =IF($D$8=U3,T59,U59) -> No Aplica | J59: =IF($D$8=U3,V59,W59) -> No Aplica | K59: =IF($D$8=U3,X59,Y59) -> No Aplica | L59: =IF(T59="No Aplica","No Aplica", Hoja1!B20) -> No Aplica | T59: =IF(OR(D15=W3,$O$13<V8),"No Aplica",IF($O$13*0.1<F59,$O$13*0.1,F59)) -> No Aplica | U59: =IF(OR(D15=W3,$O$13<V8),"No Aplica",IF($O$13*0.1<F59*$V$6,$O$13*0.1,F59*$V$6)) -> No Aplica | V59: =IF(OR(D15=W3,$O$13<V8),"No Aplica",IF($O$13*0.1<G59,$O$13*0.1,G59)) -> No Aplica | W59: =IF(OR(D15=W3,$O$13<V8),"No Aplica",IF($O$13*0.1<G59*$V$6,$O$13*0.1,G59*$V$6)) -> No Aplica | X59: =IF(OR(D15=W3,$O$13<V8),"No Aplica",IF($O$13*0.1<H59,$O$13*0.1,H59)) -> No Aplica | Y59: =IF(OR(D15=W3,$O$13<V8),"No Aplica",IF($O$13*0.1<H59*$V$6,$O$13*0.1,H59*$V$6)) -> No Aplica
C60: Deshonestidad o apropiación ilícita de trabajadores del hogar, por evento y en agregado vigencia hasta: | F60: 750 | G60: 1000 | H60: 2000 | I60: =IF($D$8=U3,T60,U60) -> No Aplica | J60: =IF($D$8=U3,V60,W60) -> No Aplica | K60: =IF($D$8=U3,X60,Y60) -> No Aplica | L60: =IF(T60="No Aplica","No Aplica", Hoja1!B21) -> No Aplica | T60: =IF(OR(D15=W3,$O$13<V8),"No Aplica",F60) -> No Aplica | U60: =IF(OR(D15=W3,$O$13<V8),"No Aplica",(F60*$V$6)) -> No Aplica | V60: =IF(OR(D15=W3,$O$13<V8),"No Aplica",G60) -> No Aplica | W60: =IF(OR(D15=W3,$O$13<V8),"No Aplica",(G60*$V$6)) -> No Aplica | X60: =IF(OR(D15=W3,$O$13<V8),"No Aplica",H60) -> No Aplica | Y60: =IF(OR(D15=W3,$O$13<V8),"No Aplica",(H60*$V$6)) -> No Aplica
C61: Compensación por Muerte accidental del Asegurado o de su cónyuge o conviviente | F61: 7500 | G61: 10000 | H61: 20000 | I61: =IF($D$8=U3,T61,U61) -> No Aplica | J61: =IF($D$8=U3,V61,W61) -> No Aplica | K61: =IF($D$8=U3,X61,Y61) -> No Aplica | L61: =IF(T61="No Aplica","No Aplica", Hoja1!B22) -> No Aplica | T61: =IF(OR(D15=W3,$O$13<V8),"No Aplica",F61) -> No Aplica | U61: =IF(OR(D15=W3,$O$13<V8),"No Aplica",(F61*$V$6)) -> No Aplica | V61: =IF(OR(D15=W3,$O$13<V8),"No Aplica",G61) -> No Aplica | W61: =IF(OR(D15=W3,$O$13<V8),"No Aplica",(G61*$V$6)) -> No Aplica | X61: =IF(OR(D15=W3,$O$13<V8),"No Aplica",H61) -> No Aplica | Y61: =IF(OR(D15=W3,$O$13<V8),"No Aplica",(H61*$V$6)) -> No Aplica
C62: Gastos de Curación de empleados (Trabajadores del hogar), hasta US$ 1,000 por evento, y en agregado vigencia hasta: | F62: 1000 | G62: 2000 | H62: 3000 | I62: =IF($D$8=U3,T62,U62) -> No Aplica | J62: =IF($D$8=U3,V62,W62) -> No Aplica | K62: =IF($D$8=U3,X62,Y62) -> No Aplica | L62: =IF(T62="No Aplica","No Aplica", Hoja1!B23) -> No Aplica | T62: =IF(OR(D15=W3,$O$13<V8),"No Aplica",F62) -> No Aplica | U62: =IF(OR(D15=W3,$O$13<V8),"No Aplica",(F62*$V$6)) -> No Aplica | V62: =IF(OR(D15=W3,$O$13<V8),"No Aplica",G62) -> No Aplica | W62: =IF(OR(D15=W3,$O$13<V8),"No Aplica",(G62*$V$6)) -> No Aplica | X62: =IF(OR(D15=W3,$O$13<V8),"No Aplica",H62) -> No Aplica | Y62: =IF(OR(D15=W3,$O$13<V8),"No Aplica",(H62*$V$6)) -> No Aplica
C63: Gastos de sepelio para el asegurado o su cónyuge o hijos, hasta | F63: 1000 | G63: 2000 | H63: 3000 | I63: =IF($D$8=U3,T63,U63) -> No Aplica | J63: =IF($D$8=U3,V63,W63) -> No Aplica | K63: =IF($D$8=U3,X63,Y63) -> No Aplica | L63: =IF(T63="No Aplica","No Aplica", Hoja1!B24) -> No Aplica | T63: =IF(OR(D15=W3,$O$13<V8),"No Aplica",F63) -> No Aplica | U63: =IF(OR(D15=W3,$O$13<V8),"No Aplica",(F63*$V$6)) -> No Aplica | V63: =IF(OR(D15=W3,$O$13<V8),"No Aplica",G63) -> No Aplica | W63: =IF(OR(D15=W3,$O$13<V8),"No Aplica",(G63*$V$6)) -> No Aplica | X63: =IF(OR(D15=W3,$O$13<V8),"No Aplica",H63) -> No Aplica | Y63: =IF(OR(D15=W3,$O$13<V8),"No Aplica",(H63*$V$6)) -> No Aplica
C64: Gastos de sepelio para el trabajador del hogar, hasta | F64: 1000 | G64: 2000 | H64: 3000 | I64: =IF($D$8=U3,T64,U64) -> No Aplica | J64: =IF($D$8=U3,V64,W64) -> No Aplica | K64: =IF($D$8=U3,X64,Y64) -> No Aplica | L64: =IF(T64="No Aplica","No Aplica", Hoja1!B25) -> No Aplica | T64: =IF(OR(D15=W3,$O$13<V8),"No Aplica",F64) -> No Aplica | U64: =IF(OR(D15=W3,$O$13<V8),"No Aplica",(F64*$V$6)) -> No Aplica | V64: =IF(OR(D15=W3,$O$13<V8),"No Aplica",G64) -> No Aplica | W64: =IF(OR(D15=W3,$O$13<V8),"No Aplica",(G64*$V$6)) -> No Aplica | X64: =IF(OR(D15=W3,$O$13<V8),"No Aplica",H64) -> No Aplica | Y64: =IF(OR(D15=W3,$O$13<V8),"No Aplica",(H64*$V$6)) -> No Aplica
C66: Claúsulas
C67: Póliza de Seguro Domiciliario | D67: 014 CL Gastos eme. Méd. Ter. | I67: 015 CL RC patronal | K67: 021 CL RC posesión de mascotas | N67: 027 CL Gastos Extras
C68: 035 CL Robo de instalaciones fijas | D68: 038 CL Reemplazo | I68: 004 CL Muerte acc. Ase. Cony. o Conv. | K68: 005 CL Gastos curacion empleados | N68: 006 CL Daños int. eq.
C69: 008 CL Dinero en tránsito | D69: 009 CL Dinero dentro de la vivienda | I69: 010 CL Asistencia médica urgente | K69: 011 CL Aloj. Temp. Inha. Viv. | N69: 012 CL Daños durante traslado contenido
C70: 013 CL Pérdida de alimentos | D70: 016 CL Pérdida de equipaje | I70: 017 CL Deshonestidad trab. hogar | K70: 019 CL Gastos sep. Aseg/conyuge/hijos | N70: 020 CL Gastos sepelio trabajador del hogar
C71: 022 CL Robo Cont. Espec
C72: Condiciones Especiales
C73: - Las Sumas Aseguradas son límites únicos para la vigencia del seguro y se encuentran sujetas a los limites por evento y en agregado vigencia indicados en cada cobertura.
C74: =IF(I13=AB3,"- Condición especial de Valor Comercial"," ") -> 
C75: =IF(D7=AC3,"- Rehabilitacion Automática de la Suma Asegurada (excepto para coberturas con suma asegurada en agregado vigencia); Propiedades fuera de control del asegurado; Reposición; Errores y omisiones"," ") -> - Rehabilitacion Automática de la Suma Asegurada (excepto para coberturas con suma asegurada en agregado vigencia); Propiedades fuera de control del asegurado; Reposición; Errores y omisiones
C76: Recomendaciones
C77: - Tener instalados interruptores de tipo termomagnético o de tipo diferencial. No usar llaves de cuchilla ni conductores mellizos. - Mantener el cableado eléctrico entubado o empotrado, no debe existir presencia de cables sueltos. - Contar con un (01) extintor de PQS de 2 kgs o más de capacidad.
C79: Beneficios
C80: Linea Positiva Salud
C81: - Consejería médica gratuita vía telefónica
C82: Asistencias Domiciliarias
C84: Asistencia | E84: Copago | I84: Sublimite * | J84: Eventos
C85: Cerrajeria | E85: - | I85: 450 | J85: 3 eventos
C86: Gasfiteria | E86: - | I86: 850 | J86: 3 eventos
C87: Electricidad | E87: - | I87: 850 | J87: 2 eventos
C88: Vidrieria | E88: - | I88: 850 | J88: 2 eventos
C89: Housekeeping | E89: 30 | I89: 350 | J89: 2 eventos
C90: Ambulancia por emergencia médica o accidental | E90: - | I90: 1500 | J90: 3 eventos
C91: Consulta médica a domicilio | E91: 20 | I91: 400 | J91: 3 eventos
C92: Consulta médica por teléfono | E92: - | I92: Sin límite
C93: Consulta médica para trabajadoras de hogar | E93: 30 | I93: 400 | J93: 3 eventos
C94: Mensajería en recojo y paquetes (hasta 5 kilos) | E94: - | I94: 600 | J94: 2 eventos
C95: Valet Parking | E95: - | I95: Sin límite | J95: 2 eventos
C96: Mozo a domicilio | E96: - | I96: 1 mozo | J96: 2 eventos
C97: Orientación Veterinaria Telefónica | E97: - | I97: Sin límite | J97: -
C98: Asesoría Legal | E98: - | I98: Sin límite | J98: -
C99: Servicios de referencia y coordinación | E99: - | I99: Sin límite | J99: -
C100: Mantenimiento de Preventivo de Línea Blanca | E100: - | I100: 250 | J100: 2 eventos
C101: * El Sublimite señalado por cada asistencia corresponde al importe máximo del servicio brindado dentro de la vigencia de la póliza. Las asistencias están disponibles en algunas ciudades, sujetos al tipo de servicio requerido y al radio de acción. Se aplican restricciones por zona y horario.
C103: Exclusiones
C104: - Viviendas en cuyo interior se efectúen labores comerciales, industriales o de servicios
C105: - Viviendas ubicadas a una distancia menor a 500 metros del mar
C106: - Viviendas, casas y departamentos cuyo material de construcción predomínate NO sea ladrillo, cemento y fierro
C107: - Viviendas ubicadas en asentamientos informales o asentamientos humanos o en lotes no urbanizados o en lotes rurales o en condición de infravivienda
C109: Importante
C110: - El Asegurado deberá completar y firmar la Solicitud de Seguro
I113: Dólares ( US$ ) | J113: Dólares ( US$ ) | K113: Dólares ( US$ ) | M113: Sol ( S/ ) | N113: Sol ( S/ ) | O113: Sol ( S/ )
C114: TASA NETA ANUAL COBERTURA PRINCIPAL (Aplicado al Valor Declarado de Vivienda + Contenido asegurada) | I114: 0.00165 | J114: 0.00165 | K114: 0.00165
C115: TASA NETA ANUAL COB. ADICIONALES (Aplicado al Valor Declarado del contenido Asegurado | I115: 0.007 | J115: 0.01 | K115: 0.012
C116: RECARGO SOLO EDIFICIO | I116: 0 | J116: 50 | K116: 80 | N116: =J116*V6 -> 207.5 | O116: =K116*V6 -> 332
C117: PRIMA NETA MINIMA POR PLAN | I117: 100 | J117: 150 | K117: 180 | M117: =I117*$V$6 -> 415 | N117: =J117*$V$6 -> 622.5 | O117: =K117*$V$6 -> 747
C118: DERECHO DE EMISION MINIMO | I118: 5 | J118: =I118 -> 5 | K118: =I118 -> 5 | M118: 18 | N118: =M118 -> 18 | O118: =M118 -> 18
C119: PRIMA COMERCIAL + IGV MINIMA | I119: =(I117+I118)*1.18 -> 123.9 | J119: =(J117+J118)*1.18 -> 182.9 | K119: =(K117+K118)*1.18 -> 218.3 | M119: =(M117+M118)*1.18 -> 510.94 | N119: =(N117+N118)*1.18 -> 755.79 | O119: =(O117+O118)*1.18 -> 902.7
C120: PRIMA NETA COB PRINCIPAL EDIFICIO | I120: =I114*P13 -> 165 | J120: =J114*P13 -> 165 | K120: =K114*P13 -> 165 | M120: =I120 -> 165 | N120: 165 | O120: 165
C121: PRIMA NETA COB ADICIONAL CONTENIDO | I121: =I115*O13 -> 0 | J121: =J115*O13 -> 0 | K121: =K115*O13 -> 0 | M121: 0 | N121: 0 | O121: 0
C122: DERECHO DE EMISION COB PRINC | E122: 0.03 | I122: =I120*$E$122 -> 4.95 | J122: =J120*$E$122 -> 4.95 | K122: =K120*$E$122 -> 4.95 | M122: 4.95 | N122: 4.95 | O122: 4.95
C123: PRIMA COMERCIAL COB PRINC | I123: =I120+IF(I122<I118,I118,I122) -> 170 | J123: =J120+IF(J122<J118,J118,J122) -> 170 | K123: =K120+IF(K122<K118,K118,K122) -> 170 | M123: =M120+IF(M122<M118,M118,M122) -> 183 | N123: =N120+IF(N122<N118,N118,N122) -> 183 | O123: =O120+IF(O122<O118,O118,O122) -> 183
C124: VALIDACION PC MINIMA COB PRINC | I124: =IF(I123<I117+I118,I117+I118,I123) -> 170 | J124: =IF(J123<J117+J118,J117+J118,J123) -> 170 | K124: =IF(K123<K117+K118,K117+K118,K123) -> 185 | M124: =IF(M123<M117+M118,M117+M118,M123) -> 433 | N124: =IF(N123<N117+N118,N117+N118,N123) -> 640.5 | O124: =IF(O123<O117+O118,O117+O118,O123) -> 765
C125: VALIDACION RESTRICCION PC COB PRINC | I125: =IF(AND($E$130="SI",$E$132="NO"),I124,"No Aplica") -> 170 | J125: No Aplica | K125: No Aplica | M125: =IF(AND($E$130="SI",$E$132="NO"),M124,"No Aplica") -> 433 | N125: No Aplica | O125: No Aplica
C126: DERECHO DE EMISION COB PRINC + ADIC | E126: =E122 -> 0.03 | I126: =(I120+I121)*$E$126 -> 4.95 | J126: =(J120+J121)*$E$126 -> 4.95 | K126: =(K120+K121)*$E$126 -> 4.95 | M126: 4.95 | N126: 4.95 | O126: 4.95
C127: PRIMA COMERCIAL CON PRINC + ADIC | I127: =(I120+I121)+IF(I126<I118,I118,I126) -> 170 | J127: =(J120+J121)+IF(J126<J118,J118,J126) -> 170 | K127: =(K120+K121)+IF(K126<K118,K118,K126) -> 170 | M127: =(M120+M121)+IF(M126<M118,M118,M126) -> 183 | N127: =(N120+N121)+IF(N126<N118,N118,N126) -> 183 | O127: =(O120+O121)+IF(O126<O118,O118,O126) -> 183
C128: VALIDACION PC MINIMA COB PRINC + ADIC | I128: =IF(I127<I117+I118,I117+I118,I127) -> 170 | J128: =IF(J127<J117+J118,J117+J118,J127) -> 170 | K128: =IF(K127<K117+K118,K117+K118,K127) -> 185 | M128: =IF(M127<M117+M118,M117+M118,M127) -> 433 | N128: =IF(N127<N117+N118,N117+N118,N127) -> 640.5 | O128: =IF(O127<O117+O118,O117+O118,O127) -> 765
C129: VALIDACION RESTRICCION PC COB PRINC + ADIC | I129: =IF(AND($E$130="SI",$E$131="SI",$E$132="NO"),I128,"No Aplica") -> No Aplica | J129: =IF(AND($E$130="SI",$E$131="SI",$E$132="NO"),J128,"No Aplica") -> No Aplica | K129: =IF(AND($E$130="SI",$E$131="SI",$E$132="NO"),K128,"No Aplica") -> No Aplica | M129: =IF(AND($E$130="SI",$E$131="SI",$E$132="NO"),M128,"No Aplica") -> No Aplica | N129: =IF(AND($E$130="SI",$E$131="SI",$E$132="NO"),N128,"No Aplica") -> No Aplica | O129: =IF(AND($E$130="SI",$E$131="SI",$E$132="NO"),O128,"No Aplica") -> No Aplica
C130: ASEGURA EDIFICIO? | E130: =IF(N13>1,"SI","NO") -> SI
C131: ASEGURA CONTENIDO? | E131: =IF(O13>V8,"SI","NO") -> NO
C132: SA EXCEDE LIMITE ASEGURADO? | E132: =IF(AND(D8=U3,P13>V10),"SI",IF(AND(D8=U4,P13>V10*V6),"SI","NO")) -> NO
D133: =CONCATENATE(D15&D8) -> BASICAS Dólares (US$) | E133: PC | F133: PC + IGV | G133: Descuento
C134: Plan Estandar | D134: BASICAS Dólares (US$) | E134: =I125 -> 170 | F134: =E134*1.18 -> 200.6 | G134: =IFERROR(IF(F134*(1-$I$18)<I119,F134,F134*(1-$I$18)),"No Aplica") -> 200.6
C135: Plan Estandar | D135: BASICAS Sol ( S/ ) | E135: =M125 -> 433 | F135: 510.94 | G135: =IFERROR(IF(F135*(1-$I$18)<M119,F135,F135*(1-$I$18)),"No Aplica") -> 510.94
C136: Plan Estandar | D136: COMPLETAS Dólares (US$) | E136: =I129 -> No Aplica | G136: =IFERROR(IF(F136*(1-$I$18)<I119,F136,F136*(1-$I$18)),"No Aplica") -> No Aplica
C137: Plan Estandar | D137: COMPLETAS Sol ( S/ ) | E137: =M129 -> No Aplica | G137: =IFERROR(IF(F137*(1-$I$18)<M119,F137,F137*(1-$I$18)),"No Aplica") -> No Aplica
C138: Plan Premium | D138: BASICAS Dólares (US$) | E138: =J125 -> No Aplica | G138: =IFERROR(IF(F138*(1-$I$18)<J119,F138,F138*(1-$I$18)),"No Aplica") -> No Aplica
C139: Plan Premium | D139: BASICAS Sol ( S/ ) | E139: =N125 -> No Aplica | G139: =IFERROR(IF(F139*(1-$I$18)<N119,F139,F139*(1-$I$18)),"No Aplica") -> No Aplica
C140: Plan Premium | D140: COMPLETAS Dólares (US$) | E140: =J129 -> No Aplica | G140: =IFERROR(IF(F140*(1-$I$18)<J119,F140,F140*(1-$I$18)),"No Aplica") -> No Aplica
C141: Plan Premium | D141: COMPLETAS Sol ( S/ ) | E141: =N129 -> No Aplica | G141: =IFERROR(IF(F141*(1-$I$18)<N119,F141,F141*(1-$I$18)),"No Aplica") -> No Aplica
C142: Plan Gold | D142: BASICAS Dólares (US$) | E142: =K125 -> No Aplica | G142: =IFERROR(IF(F142*(1-$I$18)<K119,F142,F142*(1-$I$18)),"No Aplica") -> No Aplica
C143: Plan Gold | D143: BASICAS Sol ( S/ ) | E143: =O125 -> No Aplica | G143: =IFERROR(IF(F143*(1-$I$18)<O119,F143,F143*(1-$I$18)),"No Aplica") -> No Aplica
C144: Plan Gold | D144: COMPLETAS Dólares (US$) | E144: =K129 -> No Aplica | G144: =IFERROR(IF(F144*(1-$I$18)<K119,F144,F144*(1-$I$18)),"No Aplica") -> No Aplica
C145: Plan Gold | D145: COMPLETAS Sol ( S/ ) | E145: =O129 -> No Aplica | G145: =IFERROR(IF(F145*(1-$I$18)<O119,F145,F145*(1-$I$18)),"No Aplica") -> No Aplica
C148: DESCUENTO | D148: 0
D149: 0.05
D150: 0.1
D151: 0.15
D152: 0.2

Sheet CasaMAR
C2: COTIZACIÓN DE SEGURO DOMICILIARIO CASAMARV8
T3: SI | U3: Dólares ( US$ ) | V3: US$ | W3: BASICAS | AA3: Concreto Armado | AB3: Departamento
C4: CONTRATANTE | T4: NO | U4: Sol ( S/ ) | V4: S/ | W4: COMPLETAS | AA4: Ladrillo y Cemento | AB4: Casa | AD4: Debe asegurar edificio | AF4: SA Edificio minimo | AG4: 200
C5: ASEGURADO | AA5: Estructura de Acero | AD5: La cotización excede el limite permitido
C6: CORREDOR | G6: Oficina | K6: Ejecutivo Comercial | U6: Tipo de Cambio | V6: =CasaPLUS!V6 -> 4.15 | AA6: Madera y/o Adobe y/o quincha | AD6: Debe asegurar contenido | AF6: SA contenido minimo | AG6: 999
C7: ENDOSATARIO | D7: NO | F7: Nombre del Endosatario | U7: =CasaPLUS!U10 -> limite SA | V7: =CasaPLUS!V10 -> 1500000
C8: MONEDA | D8: Dólares ( US$ ) | F8: Fecha de Cotización | H8: =TODAY() -> 2021-09-30 | J8: Validez de la cotización | L8: 15 días | M8: Vigencia del seguro | O8: 1 Año | U8: monto minimo Cob robo | V8: 1599
C9: COBERTURAS SOLICITADAS | D9: B. Programa Básico + Programa Full
T10: https://exceltotal.com/ocultar-datos-en-excel-con-formato-condicional/
C11: DATOS SBS
C12: Ubicación del riesgo | G12: Tipo de Vivienda | H12: Tipo de Estructura | J12: Año de Construcción | K12: Nro. de Pisos | L12: Nro. de Sótanos | M12: =CONCATENATE("Valores Declarados ",IF(D8=U3,V3,V4)) -> Valores Declarados US$ | T12: http://www.compartir-tecnologias.es/ocultar-mostrar-filas-autoamticamente-pro-medio-formula-o-funcion-ayuda-204308052.html
M13: Edificio | N13: Contenido | O13: Total | U13: pr
G14: Departamento | M14: 200000 | O14: =SUM(M14:N14) -> 200000
D15: =+IF(D9=W3,1,0) -> 0
C16: Seleccionar Coberturas | E16: BASICAS
E18: =IF(D8=U3,V3,V4) -> US$
C19: Prima Comercial Anual | E19: =VLOOKUP(C126,C127:D130,2,FALSE) -> 391.4 | G19: =IF(M14<AG4,AD4," ") -> 
C20: Prima Comercial + IGV Anual | E20: =IFERROR(E19*1.18,"No Aplica") -> 461.852 | G20: =IF(AND(D8=U3,H121="SI"),AD5,(IF(AND(D8=U4,J121="SI"),AD5," "))) -> 
C21: Descuento | E21: 0
C22: Prima Comercial + IGV Anual | E22: =IFERROR(IF(E20*(1-E21)<H116,H116,E20*(1-E21)),"No Aplica") -> 461.852
C24: Coberturas Principales | I24: Suma Asegurada Maxima | J24: =CONCATENATE("Suma Asegurada ",IF(D8=U3,V3,V4)) -> Suma Asegurada US$ | K24: Deducibles a cargo del asegurado
S25: SA Dolares | T25: SA Soles
C26: I. PROGRAMA BASICO
C27: Este seguro cubre la destrucción o daño físico directo de la vivienda y su contenido como consecuencia directa de | U27: prima comercial minima
C28: Incendio y/o rayo, explosión, daños por agua, lluvia e inundación, caída de aeronaves, impacto de vehículos terrestres, daños por humo. | I28: Hasta el 100% de la Suma Asegurada (SA) de la Vivienda + Contenido | J28: =+O14 -> 200000 | K28: =Hoja1!B30 -> 10% del monto indemnizable mínimo US$ 500 | S28: =H115*1.18 -> 123.9 | T28: =J115*1.18 -> 510.94 | U28: prima comercial + IGV minima
C29: Terremoto, temblor, erupción volcánica, maremoto (Tsunami), salida de mar, marejada, oleaje. | J29: =J28 -> 200000 | K29: =Hoja1!B31 -> 1% de la Suma Asegurada de la Vivienda + Contenido, minimo US$ 2000,lo que resulte mayor
C30: Huelga y conmoción civil, daño malicioso, vandalismo y/o terrorismo, limite agregado vigencia hasta: | J30: =J29 -> 200000 | K30: =Hoja1!B32 -> 5% del monto indemnizable mínimo US$ 500
C31: Coberturas Adicionales
C32: Gastos Extras, hasta el 20% de la suma asegurada de la vivienda + contenido, máximo: | I32: 30000 | J32: =IF($D$8="Dólares ( US$ )",S32,T32) -> 20000 | K32: El de la cobertura afectada | S32: =IF(O14*0.1<I32,O14*0.1,I32) -> 20000 | T32: =IF(O14*0.1<I32*$V$6,O14*0.1,I32*$V$6) -> 20000
C33: Gastos de remoción de escombros, hasta el 10% de la Suma Asegurada de la Vivienda + Contenido, máximo: | I33: 30000 | J33: =IF($D$8="Dólares ( US$ )",S33,T33) -> 20000 | K33: =Hoja1!B37 -> Sin deducible | S33: =IF(O14*0.1<I33,O14*0.1,I33) -> 20000 | T33: =IF(O14*0.1<I33*$V$6,O14*0.1,I33*$V$6) -> 20000
C34: Gastos de extinción y contención del siniestro, hasta el 10% de la Suma Asegurada de la Vivienda + Contenido, máximo: | I34: 30000 | J34: =IF($D$8="Dólares ( US$ )",S34,T34) -> 20000 | K34: =Hoja1!B38 -> Sin deducible | S34: =IF(O14*0.1<I34,O14*0.1,I34) -> 20000 | T34: =IF(O14*0.1<I34*$V$6,O14*0.1,I34*$V$6) -> 20000
C35: Rotura de vidrios, espejos y unidades sanitarias, hasta el 10% de la Suma Asegurada de la Vivienda, máximo: | I35: 15000 | J35: =IF($D$8="Dólares ( US$ )",S35,T35) -> 15000 | K35: =Hoja1!B36 -> 10% del monto indemnizable, mínimo US$ 30 | S35: =IF(M14*0.1<I35,M14*0.1,I35) -> 15000 | T35: =IF(M14*0.1<I35*$V$6,M14*0.1,I35*$V$6) -> 20000
C36: Robo de Instalaciones fijas, hasta el 20% de la Suma Asegurada de la Vivienda máximo | I36: 10000 | J36: =IF($D$8="Dólares ( US$ )",S36,T36) -> 10000 | K36: =Hoja1!B39 -> 15% del monto indemnizable, mínimo US$ 200 | S36: =IF(M14*0.2<I36,M14*0.2,I36) -> 10000 | T36: =IF(M14*0.2<I36*$V$6,M14*0.2,I36*$V$6) -> 40000
C37: Responsabilidad civil extracontractual frente a terceros limite en agregado vigencia, hasta: | I37: 100000 | J37: =IF(J36=0,0,IF($D$8="Dólares ( US$ )",S37,T37)) -> 100000 | K37: =Hoja1!B41 -> US$ 200 | S37: =+I37 -> 100000 | T37: =+I37*V6 -> 415000
C38: Gastos por emergencias médicas de terceros, hasta US$ 1,000 por persona, y en agregado vigencia máximo: | I38: 3000 | J38: =IF(J36=0,0,IF($D$8="Dólares ( US$ )",S38,T38)) -> 3000 | K38: =Hoja1!B42 -> Sin deducible | S38: =+I38 -> 3000 | T38: =+I38*V6 -> 12450
C39: Responsabilidad civil patronal (frente al trabajador del hogar), por evento y en el agregado vigencia hasta: | I39: 20000 | J39: =IF(J36=0,0,IF($D$8="Dólares ( US$ )",S39,T39)) -> 20000 | K39: =Hoja1!B43 -> Sin deducible | S39: =+I39 -> 20000 | T39: =+I39*V6 -> 83000
C40: Robo de Bienes Contenidos en la Vivienda hasta | I40: Hasta el 100% de la Suma Asegurada del Contenido | J40: =IF(OR(E16=W3,$N$14<V8),"No Aplica",N14) -> No Aplica | K40: =IF(J40="No Aplica", "No Aplica",Hoja1!B47) -> No Aplica
K41: =IF(J40="No Aplica"," ",Hoja1!B48) -> 
C42: 2.1.2 Contenidos Especiales (joyas, alhajas, perlas, platería, relojes personales, obras de arte, pieles, instrumentos musicales y colecciones en general) que se encuentren dentro de la vivienda y con un límite por bien de US$1,000. La Suma Asegurada está limitada al 30% de la suma asegurada del Contenido, máximo: | I42: 15000 | J42: =IF($D$8="Dólares ( US$ )",S42,T42) -> 0 | K42: 10% del Monto Indemnizable, mínimo | S42: =IF(N14*0.3<I42,N14*0.3,I42) -> 0 | T42: =IF(N14*0.3<I42*$V$6,N14*0.3,I42*$V$6) -> 0
C43: Robo de dinero en efectivo dentro de la vivienda, hasta US$ 1,000 por evento y en agregado vigencia máximo: | I43: 3000 | J43: =IF($D$8="Dólares ( US$ )",S43,T43) -> No Aplica | K43: =IF(J43="No Aplica","No Aplica",Hoja1!B50) -> No Aplica | S43: =IF(OR(E16=W3,$N$14<V8),"No Aplica",I43) -> No Aplica | T43: =IF(OR(E16=W3,$N$14<V8),"No Aplica",I43*$V$6) -> No Aplica
C44: 2.1.4 - Dinero en Tránsito solo por Asalto, maximo | I44: 2000 | J44: =IF($D$8="Dólares ( US$ )",S44,T44) -> 0 | K44: Sin Deducible | S44: =IF(N14=0,0,I44) -> 0 | T44: =IF(N14=0,0,I44*$V$6) -> 0
C45: Daños internos de equipos electrónicos y equipos eléctricos, hasta el 10% de la suma asegurada del contenido, máximo: | I45: 5000 | J45: =IF($D$8="Dólares ( US$ )",S45,T45) -> No Aplica | K45: =IF(J45="No Aplica","No Aplica",Hoja1!B53) -> No Aplica | S45: =IF(OR(E16=W3,$N$14<V8),"No Aplica",IF(N14*0.1<I45,N14*0.1,I45)) -> No Aplica | T45: =IF(OR(E16=W3,$N$14<V8),"No Aplica",IF(N14*0.1<I45*$V$6,N14*0.1,I45*$V$6)) -> No Aplica
I46: 5000
C47: Asistencia médica urgente por lesiones en un robo con un límite por persona de US$1,000 y en la vigencia hasta: | J47: =IF($D$8="Dólares ( US$ )",S47,T47) -> No Aplica | K47: =IF(J47="No Aplica","No Aplica",Hoja1!B54) -> No Aplica | S47: =IF(OR(E16=W3,$N$14<V8),"No Aplica",I46) -> No Aplica | T47: =IF(OR(E16=W3,$N$14<V8),"No Aplica",I46*$V$6) -> No Aplica
C48: Alojamiento temporal por inhabilitación de la vivienda, con un límite mensual de US$ 1,000 y en la vigencia hasta: | I48: 3000 | J48: =IF(J36=0,0,IF($D$8="Dólares ( US$ )",S48,T48)) -> No Aplica | K48: =IF(J48="No Aplica","No Aplica",Hoja1!B56) -> No Aplica | S48: =IF(OR(E16=W3,$N$14<V8),"No Aplica",I48) -> No Aplica | T48: =IF(OR(E16=W3,$N$14<V8),"No Aplica",I48*$V$6) -> No Aplica
C49: Daños durante el traslado del contenido asegurado al alojamiento temporal, hasta el 50% de la suma asegurada del contenido, máximo: | I49: 7500 | J49: =IF($D$8="Dólares ( US$ )",S49,T49) -> No Aplica | K49: =IF(J49="No Aplica","No Aplica",Hoja1!B57) -> No Aplica | S49: =IF(OR(E16=W3,$N$14<V8),"No Aplica",IF(N14*0.5<I49,N14*0.5,I49)) -> No Aplica | T49: =IF(OR(E16=W3,$N$14<V8),"No Aplica",IF(N14*0.5<I49*$V$6,N14*0.5,I49*$V$6)) -> No Aplica
C50: Perdida de alimentos en equipos de refrigeración, hasta el 5% de la suma asegurada del contenido, máximo: | I50: 1500 | J50: No Aplica | K50: =IF(J50="No Aplica","No Aplica",Hoja1!B58) -> No Aplica | S50: =IF(OR(E16=W3,$N$14<V8),"No Aplica",IF(N14*0.05<I50,N14*0.05,I50)) -> No Aplica | T50: =IF(OR(E16=W3,$N$14<V8),"No Aplica",IF(N14*0.05<I50*$V$6,N14*0.05,I50*$V$6)) -> No Aplica
C51: 2.2.6 Pérdida de equipaje y/o de los bienes portados por el Asegurado y/o cónyuge y/o hijos en caso de viaje dentro o fuera del país, hasta el 10% de la Suma Asegurada del Contenido, máximo: | I51: 5000 | J51: 0 | K51: Sin Deducible | S51: =IF(N14*0.1<I51,N14*0.1,I51) -> 0 | T51: =IF(N14*0.1<I51*$V$6,N14*0.1,I51*$V$6) -> 0
C52: Deshonestidad o apropiación ilícita de trabajadores del hogar, limite en agregado vigencia hasta: | I52: 1500 | J52: No Aplica | K52: =IF(J52="No Aplica","No Aplica",Hoja1!B60) -> No Aplica | S52: =IF(OR(E16=W3,$N$14<V8),"No Aplica",I52) -> No Aplica | T52: =IF(OR(E16=W3,$N$14<V8),"No Aplica",(I52*$V$6)) -> No Aplica
C53: Compensación por muerte accidental del Asegurado o de su cónyuge o conviviente | I53: 10000 | J53: No Aplica | K53: =IF(J53="No Aplica","No Aplica",Hoja1!B62) -> No Aplica | S53: =IF(OR(E16=W3,$N$14<V8),"No Aplica",I53) -> No Aplica | T53: =IF(OR(E16=W3,$N$14<V8),"No Aplica",(I53*$V$6)) -> No Aplica
C54: Gastos de curación de empleados (trabajadores del hogar), hasta US$ 1,000 por evento, maximo: | I54: 3000 | J54: No Aplica | K54: =IF(J54="No Aplica","No Aplica",Hoja1!B63) -> No Aplica | S54: =IF(OR(E16=W3,$N$14<V8),"No Aplica",I54) -> No Aplica | T54: =IF(OR(E16=W3,$N$14<V8),"No Aplica",(I54*$V$6)) -> No Aplica
C55: 2.3.3 Gastos de Sepelio del Asegurado y/o conyuge y/o hijos | H55: 3000 | I55: =IF($D$8="Dólares ( US$ )",S55,T55) -> 0 | J55: Sin Deducible | S55: =IF(N14=0,0,H55) -> 0 | T55: =IF(N14=0,0,(H55*$V$6)) -> 0
C56: 2.3.4 Gastos de Sepelio por muerte del trabajador del hogar | H56: 3000 | I56: =IF($D$8="Dólares ( US$ )",S56,T56) -> 0 | J56: Sin Deducible | S56: =IF(N14=0,0,H56) -> 0 | T56: =IF(N14=0,0,(H56*$V$6)) -> 0
C58: Claúsulas
C59: Póliza de Seguro Domiciliario | E59: 014 CL Gastos eme. Méd. Ter. | H59: 015 CL RC patronal | K59: 027 CL Gastos Extras | M59: 035 CL Robo de instalaciones fijas
C60: 004 CL Muerte acc. Ase. Cony. o Conv. | E60: 005 CL Gastos curacion empleados | H60: 006 CL Daños int. eq. | K60: 009 CL Dinero dentro de la vivienda | M60: 010 CL Asistencia médica urgente
C61: 011 CL Aloj. Temp. Inha. Viv. | E61: 012 CL Daños durante traslado contenido | H61: 013 CL Pérdida de alimentos | K61: 017 CL Deshonestidad trab. hogar
C62: Condiciones Especiales
C63: Las Sumas Aseguradas son límites únicos para la vigencia del seguro y se encuentran sujetas a los limites por evento y agregado vigencia indicados en cada cobertura.
C64: =IF(G14=AB3," - CE Valor Comercial"," ") -> - CE Valor Comercial
C65: =IF(D7=T3,"Rehabilitacion Automática de la Suma Asegurada (excepto para coberturas con suma asegurada en agregado vigencia); Propiedades fuera de control del asegurado; Reposición; Errores y omisiones"," ") -> 
C66: Recomendaciones
C67: - Tener instalados interruptores de tipo termomagnético o de tipo diferencial. No usar llaves de cuchilla ni conductores mellizos. - Mantener el cableado eléctrico entubado o empotrado, no debe existir presencia de cables sueltos. - Contar con un (01) extintor de PQS de 2 kgs o más de capacidad.
C69: Beneficios
C70: Linea Positiva Salud
C71: - Consejería médica gratuita vía telefónica
C72: Asistencias Domiciliarias
C74: Asistencia | F74: Copago | G74: Sublimite * | H74: Eventos
C75: Cerrajeria | F75: - | G75: 450 | H75: 3 eventos
C76: Gasfiteria | F76: - | G76: 850 | H76: 3 eventos
C77: Electricidad | F77: - | G77: 850 | H77: 2 eventos
C78: Vidrieria | F78: - | G78: 850 | H78: 2 eventos
C79: Housekeeping | F79: 30 | G79: 350 | H79: 2 eventos
C80: Ambulancia por emergencia médica o accidental | F80: - | G80: 1500 | H80: 3 eventos
C81: Consulta médica a domicilio | F81: 20 | G81: 400 | H81: 3 eventos
C82: Consulta médica por teléfono | F82: - | G82: Sin límite
C83: Consulta médica para trabajadoras de hogar | F83: 30 | G83: 400 | H83: 3 eventos
C84: Mensajería en recojo y paquetes (hasta 5 kilos) | F84: - | G84: 600 | H84: 2 eventos
C85: Valet Parking | F85: - | G85: Sin límite | H85: 2 eventos
C86: Mozo a domicilio | F86: - | G86: 1 mozo | H86: 2 eventos
C87: Orientación Veterinaria Telefónica | F87: - | G87: Sin límite | H87: -
C88: Asesoría Legal | F88: - | G88: Sin límite | H88: -
C89: Servicios de referencia y coordinación | F89: - | G89: Sin límite | H89: -
C90: Mantenimiento de Preventivo de Línea Blanca | F90: - | G90: 250 | H90: 2 eventos
C91: =CasaPLUS!C101 -> * El Sublimite señalado por cada asistencia corresponde al importe máximo del servicio brindado dentro de la vigencia de la póliza. Las asistencias están disponibles en algunas ciudades, sujetos al tipo de servicio requerido y al radio de acción. Se aplican restricciones por zona y horario.
C95: Exclusiones
C96: - Viviendas en cuyo interior se efectúen labores comerciales, industriales o de servicios
C97: - Viviendas ubicadas a una distancia menor a 100 metros del mar
C98: - Viviendas, casas y departamentos cuyo material de construcción predomínate NO sea ladrillo, cemento y fierro
C99: - Viviendas ubicadas en asentamientos informales o asentamientos humanos o en lotes no urbanizados o en lotes rurales o en condición de infravivienda
C101: Importante
C102: - El Asegurado deberá completar y firmar la Solicitud de Seguro
H104: Dolares | J104: Soles
C105: TASA NETA ANUAL COBERTURA PRINCIPAL (aplicado al VD de Vivienda + Contenido asegurada) | G105: 1.9
C106: TASA NETA ANUAL COB ADICIONALES (Aplicado al VD del contenido Asegurado | G106: 8
C107: PRIMA NETA COBERTURA BASICA | H107: =G105*O14/1000 -> 380 | J107: =G105*O14/1000 -> 380
C108: PRIMA NETA CONTENIDO | H108: =N14*G106/1000 -> 0 | J108: =N14*G106/1000 -> 0
C109: PRIMA NETA COBERTURA COMPLETA | H109: =SUM(H107:H108) -> 380 | J109: =SUM(J107:J108) -> 380
C110: DERECHO DE EMISION COBERTURA BASICA % | H110: =H107*G111 -> 11.4 | J110: =J107*G111 -> 11.4
C111: DERECHO DE EMISION COBERTURA COMPLETA % | G111: 0.03 | H111: =H109*G111 -> 11.4 | J111: =J109*G111 -> 11.4
C112: DERECHO DE EMISION MINIMO | H112: 5 | J112: 18
C113: PRIMA COMERCIAL APLICADA COBERTURA BASICA | H113: =IF(H110>H112,H107+H110,H107+H112) -> 391.4 | J113: =IF(J110>J112,J107+J110,J107+J112) -> 398
C114: PRIMA COMERCIAL APLICADA COBERTURA COMPLETA | H114: =IF(H111>H112,H109+H111,H109+H112) -> 391.4 | J114: =IF(J111>J112,J109+J111,J109+J112) -> 398
C115: PRIMA COMERCIAL MINIMA CASAMAR | H115: =100+H112 -> 105 | J115: =(100*V6)+J112 -> 433
C116: PRIMA COMERCIAL + IGV MINIMA CASAMAR | H116: =H115*1.18 -> 123.9 | J116: =J115*1.18 -> 510.94
C117: VALIDACION PC MINIMA COBERTURA BASICA | H117: =IF(H113<H115,H115,H113) -> 391.4 | J117: =IF(J113<J115,J115,J113) -> 433
C118: VALIDACION PC MINIMA COBERTURA COMPLETA | H118: =IF(H114<H115,H115,H114) -> 391.4 | J118: =IF(J114<J115,J115,J114) -> 433
C119: ¿ASEGURA EDIFICIO? | H119: =IF(M14<AG4,"NO","SI") -> SI | J119: =H119 -> SI
C120: ¿CONTENIDO EXCEDE MINIMO REQUERIDO? | H120: =IF(N14>V8,"SI","NO") -> NO | J120: =IF(N14>V8*V6,"SI","NO") -> NO
C121: ¿EXCEDE LIMITE ASEGURADO? | H121: =IF(O14>V7,"SI","NO") -> NO | J121: =IF(O14>V7*V6,"SI","NO") -> NO
C122: PRIMA COMERCIAL VALIDADA COBERTURA BASICA | H122: =IF(OR(H119="NO",H121="SI"),"No aplica",H117) -> 391.4 | J122: =IF(OR(J119="NO",J121="SI"),"No aplica",J117) -> 433
C123: PRIMA COMERCIAL VALIDADA COBERTURA COMPLETA | H123: =IF(OR(H119="NO",H120="NO",H121="SI"),"No aplica",IF(H114>H115,H114,H115)) -> No aplica | J123: =IF(OR(J119="NO",J120="NO",J121="SI"),"No aplica",IF(J114>J115,J114,J115)) -> No aplica
D125: PRIMA COMERCIAL
C126: =CONCATENATE(E16,D8) -> BASICASDólares ( US$ )
C127: =CONCATENATE(W3,U3) -> BASICASDólares ( US$ ) | D127: =H122 -> 391.4
C128: =CONCATENATE(W3,U4) -> BASICASSol ( S/ ) | D128: =J122 -> 433
C129: =CONCATENATE(W4,U3) -> COMPLETASDólares ( US$ ) | D129: =H123 -> No aplica
C130: =CONCATENATE(W4,U4) -> COMPLETASSol ( S/ ) | D130: =J123 -> No aplica

Sheet Hoja1 (hidden)
A3: DEDUCIBLES CP | D3: Moneda | E3: Minimo
A4: =CasaPLUS!C33 -> Incendio y/o rayo, explosión, daños por agua, lluvia e inundación, caída de aeronaves, impacto de vehículos terrestres, daños por humo. | B4: =CONCATENATE(Hoja1!C4," ",Hoja1!D4," ",Hoja1!E4, ,Hoja1!F4) -> 10% del monto indemnizable mínimo US$ 200 | C4: 10% del monto indemnizable mínimo | D4: =IF(CasaPLUS!D8=CasaPLUS!U3,CasaPLUS!V3,CasaPLUS!V4) -> US$ | E4: =IF(D4=CasaPLUS!V3,Hoja1!H4,Hoja1!H4*CasaPLUS!V6) -> 200 | H4: 200
A5: =CasaPLUS!C34 -> Terremoto, temblor, erupción volcánica, maremoto (Tsunami), salida de mar, marejada, oleaje. | B5: =CONCATENATE(Hoja1!C5," ",Hoja1!D5," ",Hoja1!E5, ,Hoja1!F5) -> 1% de la Suma Asegurada de la Vivienda + Contenido, minimo US$ 500, lo que resulte mayor. | C5: 1% de la Suma Asegurada de la Vivienda + Contenido, minimo | D5: =D4 -> US$ | E5: =IF(D5=CasaPLUS!V3,Hoja1!H5,Hoja1!H5*CasaPLUS!V6) -> 500 | F5: , lo que resulte mayor. | H5: 500
A6: =CasaPLUS!C35 -> Huelga y conmoción civil, daño malicioso, vandalismo y/o terrorismo, limite agregado vigencia hasta. | B6: =CONCATENATE(Hoja1!C6," ",Hoja1!D6," ",Hoja1!E6, ,Hoja1!F6) -> 5% del monto indemnizable mínimo US$ 200 | C6: 5% del monto indemnizable mínimo | D6: =D4 -> US$ | E6: =IF(D6=CasaPLUS!V3,Hoja1!H6,Hoja1!H6*CasaPLUS!V6) -> 200 | H6: 200
A7: =CasaPLUS!C43 -> Rotura de vidrios, espejos y unidades sanitarias, hasta el 20% de la Suma Asegurada de la Vivienda, máximo: | B7: =CONCATENATE(Hoja1!C7," ",Hoja1!D7," ",Hoja1!E7, ,Hoja1!F7) -> 10% del monto indemnizable, mínimo US$ 30 | C7: 10% del monto indemnizable, mínimo | D7: =D4 -> US$ | E7: =ROUND(IF(D7=CasaPLUS!V3,Hoja1!H7,Hoja1!H7*CasaPLUS!V6),0) -> 30 | H7: 30
A8: =CasaPLUS!C44 -> Robo de instalaciones fijas, hasta el 20% de la Suma Asegurada de la Vivienda, máximo: | B8: =CONCATENATE(Hoja1!C8," ",Hoja1!D8," ",Hoja1!E8, ,Hoja1!F8) -> 15% del monto indemnizable, mínimo US$ 200 | C8: 15% del monto indemnizable, mínimo | D8: =D4 -> US$ | E8: =IF(D8=CasaPLUS!V3,Hoja1!H8,Hoja1!H8*CasaPLUS!V6) -> 200 | H8: 200
A9: =CasaPLUS!C45 -> Responsabilidad civil extracontractual Frente a Terceros, por evento y en agregado vigencia hasta: | B9: =CONCATENATE(Hoja1!C9," ",Hoja1!D9," ",Hoja1!E9, ,Hoja1!F9) -> US$ 200 | D9: =D6 -> US$ | E9: =IF(D9=CasaPLUS!V3,Hoja1!H9,Hoja1!H9*CasaPLUS!V6) -> 200 | H9: 200
A10: =CasaPLUS!C50 -> Robo de Bienes Contenidos en la Vivienda hasta: | B10: =CONCATENATE(Hoja1!C10," ",Hoja1!D10," ",Hoja1!E10, ,Hoja1!F10) -> 15% del monto indemnizable, mínimo US$ 500 | C10: 15% del monto indemnizable, mínimo | D10: =D5 -> US$ | E10: =IF(D10=CasaPLUS!V3,Hoja1!H10,Hoja1!H10*CasaPLUS!V6) -> 500 | H10: 500
A11: =CasaPLUS!C51 -> Robo de Contenidos Especiales (joyas, alhajas, perlas, platería, relojes personales, obras de arte, pieles, instrumentos musicales y colecciones en general) dentro o fuera de los predios, con un límite por bien de US$1,000. La Suma Asegurada está limitada al 30% de la suma asegurada del Contenido, hasta: | B11: =CONCATENATE(Hoja1!C11," ",Hoja1!D11," ",Hoja1!E11, ,Hoja1!F11) -> 15% del monto indemnizable, mínimo US$ 300 | C11: 15% del monto indemnizable, mínimo | D11: =D7 -> US$ | E11: =IF(D11=CasaPLUS!V3,Hoja1!H11,Hoja1!H11*CasaPLUS!V6) -> 300 | H11: 300
A12: =CasaPLUS!C52 -> Robo de dinero en Efectivo dentro de la Vivienda, hasta: | B12: =CONCATENATE(Hoja1!C12," ",Hoja1!D12," ",Hoja1!E12, ,Hoja1!F12) -> US$ 50 | D12: =D8 -> US$ | E12: =ROUND(IF(D12=CasaPLUS!V3,Hoja1!H12,Hoja1!H12*CasaPLUS!V6),0) -> 50 | H12: 50
A13: =CasaPLUS!C53 -> Robo de dinero en tránsito solo por asalto, hasta: | B13: =CONCATENATE(Hoja1!C13," ",Hoja1!D13," ",Hoja1!E13, ,Hoja1!F13) -> US$ 50 | D13: US$ | E13: =ROUND(IF(D13=CasaPLUS!V3,Hoja1!H13,Hoja1!H13*CasaPLUS!V6),0) -> 50 | H13: 50
A14: =CasaPLUS!C54 -> Daños internos de equipos electrónicos y equipos eléctricos, hasta el 10% de la Suma Asegurada del Contenido, máximo: | B14: =CONCATENATE(Hoja1!C14," ",Hoja1!D14," ",Hoja1!E14, ,Hoja1!F14) -> 10% del monto indemnizable, mínimo US$ 50 | C14: 10% del monto indemnizable, mínimo | D14: US$ | E14: =ROUND(IF(D14=CasaPLUS!V3,Hoja1!H14,Hoja1!H14*CasaPLUS!V6),0) -> 50 | H14: 50
A15: =CasaPLUS!C55 -> Asistencia médica urgente por lesiones en un robo con un límite por persona de US$1,000 y en agregado vigencia máximo: | B15: =CONCATENATE(Hoja1!C15," ",Hoja1!D15," ",Hoja1!E15, ,Hoja1!F15) -> Sin deducible | C15: Sin deducible
A17: =CasaPLUS!C56 -> Alojamiento temporal por inhabilitación de la vivienda, con un límite mensual de US$ 1,000 y en agregado vigencia máximo: | B17: =CONCATENATE(Hoja1!C17," ",Hoja1!D17," ",Hoja1!E17, ,Hoja1!F17) -> Sin deducible | C17: Sin deducible
A18: =CasaPLUS!C57 -> Daños durante el traslado del contenido asegurado al alojamiento temporal, hasta el 50% de la Suma Asegurada del Contenido, máximo: | B18: =CONCATENATE(Hoja1!C18," ",Hoja1!D18," ",Hoja1!E18, ,Hoja1!F18) -> 10% del monto indemnizable, mínimo US$ 50 | C18: 10% del monto indemnizable, mínimo | D18: =D4 -> US$ | E18: =ROUND(IF(D18=CasaPLUS!V3,Hoja1!H18,Hoja1!H18*CasaPLUS!V6),0) -> 50 | H18: 50
A19: =CasaPLUS!C58 -> Perdida de alimentos en equipos de refrigeración, hasta el 5% de la Suma Asegurada del Contenido, máximo: | B19: =CONCATENATE(Hoja1!C19," ",Hoja1!D19," ",Hoja1!E19, ,Hoja1!F19) -> 10% del monto indemnizable, mínimo US$ 50 | C19: 10% del monto indemnizable, mínimo | D19: =D4 -> US$ | E19: =ROUND(IF(D19=CasaPLUS!V3,Hoja1!H19,Hoja1!H19*CasaPLUS!V6),0) -> 50 | H19: 50
A20: =CasaPLUS!C59 -> Pérdida de equipaje por viaje dentro o fuera del país, hasta el 10% de la Suma Asegurada del Contenido, máximo: | B20: =CONCATENATE(Hoja1!C20," ",Hoja1!D20," ",Hoja1!E20, ,Hoja1!F20) -> 10% del monto indemnizable, mínimo US$ 50 | C20: 10% del monto indemnizable, mínimo | D20: =D4 -> US$ | E20: =ROUND(IF(D20=CasaPLUS!V3,Hoja1!H20,Hoja1!H20*CasaPLUS!V6),0) -> 50 | H20: 50
A21: =CasaPLUS!C60 -> Deshonestidad o apropiación ilícita de trabajadores del hogar, por evento y en agregado vigencia hasta: | B21: =CONCATENATE(Hoja1!C21," ",Hoja1!D21," ",Hoja1!E21, ,Hoja1!F21) -> 10% del monto indemnizable, mínimo US$ 200 | C21: 10% del monto indemnizable, mínimo | D21: =D4 -> US$ | E21: =IF(D21=CasaPLUS!V3,Hoja1!H21,Hoja1!H21*CasaPLUS!V6) -> 200 | H21: 200
A22: =CasaPLUS!C61 -> Compensación por Muerte accidental del Asegurado o de su cónyuge o conviviente | B22: =CONCATENATE(Hoja1!C22," ",Hoja1!D22," ",Hoja1!E22, ,Hoja1!F22) -> Sin deducible | C22: Sin deducible
A23: =CasaPLUS!C62 -> Gastos de Curación de empleados (Trabajadores del hogar), hasta US$ 1,000 por evento, y en agregado vigencia hasta: | B23: =CONCATENATE(Hoja1!C23," ",Hoja1!D23," ",Hoja1!E23, ,Hoja1!F23) -> Sin deducible | C23: Sin deducible
A24: =CasaPLUS!C63 -> Gastos de sepelio para el asegurado o su cónyuge o hijos, hasta | B24: =CONCATENATE(Hoja1!C24," ",Hoja1!D24," ",Hoja1!E24, ,Hoja1!F24) -> Sin deducible | C24: Sin deducible
A25: =CasaPLUS!C64 -> Gastos de sepelio para el trabajador del hogar, hasta | B25: =CONCATENATE(Hoja1!C25," ",Hoja1!D25," ",Hoja1!E25, ,Hoja1!F25) -> Sin deducible | C25: Sin deducible
A29: DEDUCIBLES CM | D29: Moneda | E29: Minimo
A30: =+CasaMAR!C28 -> Incendio y/o rayo, explosión, daños por agua, lluvia e inundación, caída de aeronaves, impacto de vehículos terrestres, daños por humo. | B30: =CONCATENATE(Hoja1!C30," ",Hoja1!D30," ",Hoja1!E30, ,Hoja1!F30) -> 10% del monto indemnizable mínimo US$ 500 | C30: 10% del monto indemnizable mínimo | D30: =IF(CasaMAR!D8=CasaMAR!U3,CasaMAR!V3,CasaMAR!V4) -> US$ | E30: =IF(CasaMAR!$D$8=CasaMAR!$U$3,Hoja1!H30,Hoja1!H30*CasaMAR!$V$6) -> 500 | H30: 500
A31: =+CasaMAR!C29 -> Terremoto, temblor, erupción volcánica, maremoto (Tsunami), salida de mar, marejada, oleaje. | B31: =CONCATENATE(Hoja1!C31," ",Hoja1!D31," ",Hoja1!E31, ,Hoja1!F31) -> 1% de la Suma Asegurada de la Vivienda + Contenido, minimo US$ 2000,lo que resulte mayor | C31: 1% de la Suma Asegurada de la Vivienda + Contenido, minimo | D31: =$D$30 -> US$ | E31: =IF(CasaMAR!$D$8=CasaMAR!$U$3,Hoja1!H31,Hoja1!H31*CasaMAR!$V$6) -> 2000 | F31: ,lo que resulte mayor | H31: 2000
A32: =+CasaMAR!C30 -> Huelga y conmoción civil, daño malicioso, vandalismo y/o terrorismo, limite agregado vigencia hasta: | B32: =CONCATENATE(Hoja1!C32," ",Hoja1!D32," ",Hoja1!E32, ,Hoja1!F32) -> 5% del monto indemnizable mínimo US$ 500 | C32: 5% del monto indemnizable mínimo | D32: =$D$30 -> US$ | E32: =IF(CasaMAR!$D$8=CasaMAR!$U$3,Hoja1!H32,Hoja1!H32*CasaMAR!$V$6) -> 500 | H32: 500
A36: =+CasaMAR!C35 -> Rotura de vidrios, espejos y unidades sanitarias, hasta el 10% de la Suma Asegurada de la Vivienda, máximo: | B36: =CONCATENATE(Hoja1!C36," ",Hoja1!D36," ",Hoja1!E36, ,Hoja1!F36) -> 10% del monto indemnizable, mínimo US$ 30 | C36: 10% del monto indemnizable, mínimo | D36: =$D$30 -> US$ | E36: =ROUND(IF(CasaMAR!$D$8=CasaMAR!$U$3,Hoja1!H36,Hoja1!H36*CasaMAR!$V$6),0) -> 30 | H36: 30
A37: =+CasaMAR!C33 -> Gastos de remoción de escombros, hasta el 10% de la Suma Asegurada de la Vivienda + Contenido, máximo: | B37: =CONCATENATE(Hoja1!C37," ",Hoja1!D37," ",Hoja1!E37, ,Hoja1!F37) -> Sin deducible | C37: Sin deducible
A38: =+CasaMAR!C34 -> Gastos de extinción y contención del siniestro, hasta el 10% de la Suma Asegurada de la Vivienda + Contenido, máximo: | B38: =CONCATENATE(Hoja1!C38," ",Hoja1!D38," ",Hoja1!E38, ,Hoja1!F38) -> Sin deducible | C38: Sin deducible
A39: =+CasaMAR!C36 -> Robo de Instalaciones fijas, hasta el 20% de la Suma Asegurada de la Vivienda máximo | B39: =CONCATENATE(Hoja1!C39," ",Hoja1!D39," ",Hoja1!E39, ,Hoja1!F39) -> 15% del monto indemnizable, mínimo US$ 200 | C39: 15% del monto indemnizable, mínimo | D39: =D30 -> US$ | E39: =IF(CasaMAR!$D$8=CasaMAR!$U$3,Hoja1!H39,Hoja1!H39*CasaMAR!$V$6) -> 200 | H39: 200
A40: =+CasaMAR!#REF! ->  | B40: =CONCATENATE(Hoja1!C40," ",Hoja1!D40," ",Hoja1!E40, ,Hoja1!F40) -> 
A41: =+CasaMAR!C37 -> Responsabilidad civil extracontractual frente a terceros limite en agregado vigencia, hasta: | B41: =CONCATENATE(Hoja1!C41," ",Hoja1!D41," ",Hoja1!E41, ,Hoja1!F41) -> US$ 200 | D41: =$D$30 -> US$ | E41: =IF(CasaMAR!$D$8=CasaMAR!$U$3,Hoja1!H41,Hoja1!H41*CasaMAR!$V$6) -> 200 | H41: 200
A42: =+CasaMAR!C38 -> Gastos por emergencias médicas de terceros, hasta US$ 1,000 por persona, y en agregado vigencia máximo: | B42: =CONCATENATE(Hoja1!C42," ",Hoja1!D42," ",Hoja1!E42, ,Hoja1!F42) -> Sin deducible | C42: Sin deducible
A43: =+CasaMAR!C39 -> Responsabilidad civil patronal (frente al trabajador del hogar), por evento y en el agregado vigencia hasta: | B43: =CONCATENATE(Hoja1!C43," ",Hoja1!D43," ",Hoja1!E43, ,Hoja1!F43) -> Sin deducible | C43: Sin deducible
A44: =+CasaMAR!#REF! ->  | B44: =CONCATENATE(Hoja1!C44," ",Hoja1!D44," ",Hoja1!E44, ,Hoja1!F44) -> 
A45: =+CasaMAR!#REF! ->  | B45: =CONCATENATE(Hoja1!C45," ",Hoja1!D45," ",Hoja1!E45, ,Hoja1!F45) -> 
A46: =+CasaMAR!#REF! ->  | B46: =CONCATENATE(Hoja1!C46," ",Hoja1!D46," ",Hoja1!E46, ,Hoja1!F46) -> 
A47: =+CasaMAR!C40 -> Robo de Bienes Contenidos en la Vivienda hasta | B47: =CONCATENATE(Hoja1!C47," ",Hoja1!D47," ",Hoja1!E47, ,Hoja1!F47) -> Eventos ocurridos entre diciembre y abril: 10% del monto indemnizable, mínimo US$ 500 | C47: Eventos ocurridos entre diciembre y abril: 10% del monto indemnizable, mínimo | D47: =$D$30 -> US$ | E47: =IF(CasaMAR!$D$8=CasaMAR!$U$3,Hoja1!H47,Hoja1!H47*CasaMAR!$V$6) -> 500 | H47: 500
A48: =+CasaMAR!C41 -> 0 | B48: =CONCATENATE(Hoja1!C48," ",Hoja1!D48," ",Hoja1!E48, ,Hoja1!F48) -> Eventos ocurridos entre mayo y noviembre: 10% del monto indemnizable, mínimo US$ 2500 | C48: Eventos ocurridos entre mayo y noviembre: 10% del monto indemnizable, mínimo | D48: =$D$30 -> US$ | E48: =IF(CasaMAR!$D$8=CasaMAR!$U$3,Hoja1!H48,Hoja1!H48*CasaMAR!$V$6) -> 2500 | H48: 2500
A49: =+CasaMAR!C42 -> 2.1.2 Contenidos Especiales (joyas, alhajas, perlas, platería, relojes personales, obras de arte, pieles, instrumentos musicales y colecciones en general) que se encuentren dentro de la vivienda y con un límite por bien de US$1,000. La Suma Asegurada está limitada al 30% de la suma asegurada del Contenido, máximo: | B49: =CONCATENATE(Hoja1!C49," ",Hoja1!D49," ",Hoja1!E49, ,Hoja1!F49) -> 
A50: =+CasaMAR!C43 -> Robo de dinero en efectivo dentro de la vivienda, hasta US$ 1,000 por evento y en agregado vigencia máximo: | B50: =CONCATENATE(Hoja1!C50," ",Hoja1!D50," ",Hoja1!E50, ,Hoja1!F50) -> US$ 50 | D50: =$D$30 -> US$ | E50: =ROUND(IF(CasaMAR!$D$8=CasaMAR!$U$3,Hoja1!H50,Hoja1!H50*CasaMAR!$V$6),0) -> 50 | H50: 50
A51: =+CasaMAR!C44 -> 2.1.4 - Dinero en Tránsito solo por Asalto, maximo | B51: =CONCATENATE(Hoja1!C51," ",Hoja1!D51," ",Hoja1!E51, ,Hoja1!F51) -> 
A52: =+CasaMAR!#REF! ->  | B52: =CONCATENATE(Hoja1!C52," ",Hoja1!D52," ",Hoja1!E52, ,Hoja1!F52) -> 
A53: =+CasaMAR!C45 -> Daños internos de equipos electrónicos y equipos eléctricos, hasta el 10% de la suma asegurada del contenido, máximo: | B53: =CONCATENATE(Hoja1!C53," ",Hoja1!D53," ",Hoja1!E53, ,Hoja1!F53) -> 10% del monto indemnizable, mínimo US$ 50 | C53: 10% del monto indemnizable, mínimo | D53: =$D$30 -> US$ | E53: =ROUND(IF(CasaMAR!$D$8=CasaMAR!$U$3,Hoja1!H53,Hoja1!H53*CasaMAR!$V$6),0) -> 50 | H53: 50
A54: =+CasaMAR!C47 -> Asistencia médica urgente por lesiones en un robo con un límite por persona de US$1,000 y en la vigencia hasta: | B54: =CONCATENATE(Hoja1!C54," ",Hoja1!D54," ",Hoja1!E54, ,Hoja1!F54) -> Sin deducible | C54: Sin deducible
A55: =+CasaMAR!#REF! ->  | B55: =CONCATENATE(Hoja1!C55," ",Hoja1!D55," ",Hoja1!E55, ,Hoja1!F55) -> 
A56: =+CasaMAR!C48 -> Alojamiento temporal por inhabilitación de la vivienda, con un límite mensual de US$ 1,000 y en la vigencia hasta: | B56: =CONCATENATE(Hoja1!C56," ",Hoja1!D56," ",Hoja1!E56, ,Hoja1!F56) -> Sin deducible | C56: Sin deducible
A57: =+CasaMAR!C49 -> Daños durante el traslado del contenido asegurado al alojamiento temporal, hasta el 50% de la suma asegurada del contenido, máximo: | B57: =CONCATENATE(Hoja1!C57," ",Hoja1!D57," ",Hoja1!E57, ,Hoja1!F57) -> 10% del monto indemnizable, mínimo US$ 50 | C57: 10% del monto indemnizable, mínimo | D57: =$D$30 -> US$ | E57: =ROUND(IF(CasaMAR!$D$8=CasaMAR!$U$3,Hoja1!H57,Hoja1!H57*CasaMAR!$V$6),0) -> 50 | H57: 50
A58: =+CasaMAR!C50 -> Perdida de alimentos en equipos de refrigeración, hasta el 5% de la suma asegurada del contenido, máximo: | B58: =CONCATENATE(Hoja1!C58," ",Hoja1!D58," ",Hoja1!E58, ,Hoja1!F58) -> 10% del monto indemnizable, mínimo US$ 50 | C58: 10% del monto indemnizable, mínimo | D58: =$D$30 -> US$ | E58: =ROUND(IF(CasaMAR!$D$8=CasaMAR!$U$3,Hoja1!H58,Hoja1!H58*CasaMAR!$V$6),0) -> 50 | H58: 50
A59: =+CasaMAR!C51 -> 2.2.6 Pérdida de equipaje y/o de los bienes portados por el Asegurado y/o cónyuge y/o hijos en caso de viaje dentro o fuera del país, hasta el 10% de la Suma Asegurada del Contenido, máximo: | B59: =CONCATENATE(Hoja1!C59," ",Hoja1!D59," ",Hoja1!E59, ,Hoja1!F59) -> 
A60: =+CasaMAR!C52 -> Deshonestidad o apropiación ilícita de trabajadores del hogar, limite en agregado vigencia hasta: | B60: =CONCATENATE(Hoja1!C60," ",Hoja1!D60," ",Hoja1!E60, ,Hoja1!F60) -> 10% del monto indemnizable, mínimo US$ 200 | C60: 10% del monto indemnizable, mínimo | D60: =$D$30 -> US$ | E60: =ROUND(IF(CasaMAR!$D$8=CasaMAR!$U$3,Hoja1!H60,Hoja1!H60*CasaMAR!$V$6),0) -> 200 | H60: 200
A61: =+CasaMAR!#REF! ->  | B61: =CONCATENATE(Hoja1!C61," ",Hoja1!D61," ",Hoja1!E61, ,Hoja1!F61) -> 
A62: =+CasaMAR!C53 -> Compensación por muerte accidental del Asegurado o de su cónyuge o conviviente | B62: =CONCATENATE(Hoja1!C62," ",Hoja1!D62," ",Hoja1!E62, ,Hoja1!F62) -> Sin deducible | C62: Sin deducible
A63: =+CasaMAR!C54 -> Gastos de curación de empleados (trabajadores del hogar), hasta US$ 1,000 por evento, maximo: | B63: =CONCATENATE(Hoja1!C63," ",Hoja1!D63," ",Hoja1!E63, ,Hoja1!F63) -> Sin deducible | C63: Sin deducible
A64: =+CasaMAR!C55 -> 2.3.3 Gastos de Sepelio del Asegurado y/o conyuge y/o hijos | B64: =CONCATENATE(Hoja1!C64," ",Hoja1!D64," ",Hoja1!E64, ,Hoja1!F64) -> 
A65: =+CasaMAR!C56 -> 2.3.4 Gastos de Sepelio por muerte del trabajador del hogar | B65: =CONCATENATE(Hoja1!C65," ",Hoja1!D65," ",Hoja1!E65, ,Hoja1!F65) -> 
